Cogmind - Beta 15 --- EXPLORER MODE // 2025.08.24 @ 00:32:55 Player: Aydz Result: Heading to fleet! Performance ------------- Evolutions (9) 4500 Regions Visited (20) 4000 Robots Destroyed (394) 1970 Value Destroyed (17836) 17836 Prototype IDs (89) 1780 Alien Tech Used (5) 1000 Bonus (11213) 11213 TOTAL SCORE: 42299 Bonus ------- High Alert Combat Kills 805 Follower Combat Kills 1725 Network Hubs Disabled 800 Met Zhirov 300 Built Enhanced Grunts 300 Met R17 at Cetus 500 Used Core Reset Matrix 3000 Met R17 at Research 2000 Win 3000 Friendly Fire -1217 Cogmind --------- Core Integrity 1194/1600 Matter 288/300 Energy 480/484 System Corruption 6% Temperature Cool (10) Movement Treading (46) Location To Fleet Rendezvous Parts ------- > --- POWER (3) -------- Quantum Reactor Particle-Antimatter Reactor > --- PROPULSION (7) --- Treaded Biometal Exoskeleton > --- UTILITY (12) ----- Armored Scrap Engine Advanced Heat Sink Advanced Heat Sink Advanced Sensor Array Advanced Signal Interpreter Advanced Weapon Cycler Advanced Transmission Jammer Jamming Amplifier Advanced ECM Suite Graphene Brace Advanced Force Field > --- WEAPON (4) ------- Heavy Disruptor Cannon Enhanced Nova Cannon Hpw. Charged Gamma Construct/G > --- INVENTORY (5) ---- Stasis Canceller Layered Heavy Armor Plating Subatomic Replicator Peak State ------------ > --- POWER ------------ Light Quantum Reactor Particle-Antimatter Reactor > --- PROPULSION ------- Treaded Biometal Exoskeleton > --- UTILITY ---------- Armored Scrap Engine Advanced Cooling System Advanced Sensor Array Advanced Signal Interpreter Advanced Transmission Jammer Jamming Amplifier Advanced ECM Suite Advanced Reaction Control System Graphene Brace Phase Redirector Advanced Dynamic Insulation System > --- WEAPON ----------- Hpw. Charged Gamma Construct/G Hyp. KE Linear Construct/C Thermal Phase Construct/G Energy Linear Construct/C > --- INVENTORY -------- Stasis Canceller Dimensional Node Initializer Subatomic Replicator [Rating: 197] Favorites ----------- Power Constructs Engine Heavy Deuterium Engine Power Core Nuclear Core Reactor Constructs Propulsion Constructs Treads Constructs Leg Improved Carbon-fiber Leg Flight Unit VTOL Module Utility Armored Scrap Engine Device Armored Scrap Engine Storage Large Storage Unit Processor Advanced Targeting Computer Hackware Advanced Hacking Suite Protection Medium Regenerative Plating Artifact Phase Redirector Weapon Constructs Energy Gun Constructs Energy Cannon Compact Ion Cannon Ballistic Gun Constructs Ballistic Cannon Constructs Launcher Advanced EMP Blaster Special Weapon Remote Datajack Impact Weapon Heavy Flail Slashing Weapon Phasing Sabre Piercing Weapon Spear Build | -11 -10 -10 -8 -7 -7 -7 -5 -5 -5 -5 -5 -4 -4 -4 -4 -3 -3 -3 -2 -1 ------- Run | Yrd Mat Sub Mat Fac Sto Rec Fac Ext Cet Arc Hub Fac Upp Upp Zhi Pro Res Qua Res Acc Slots Evolved 19 | . 1 . 4 2 . . 4 . . . . 2 . . . . 2 . 2 2 Power 2 | . . . . 1 . . . . . . . . . . . . 1 . . . Propulsion 5 | . . . 2 . . . . . . . . 1 . . . . . . . 2 Utility 10 | . 1 . 2 1 . . 3 . . . . 1 . . . . . . 2 . Weapon 2 | . . . . . . . 1 . . . . . . . . . 1 . . . Parts Attached 262 | 7 10 4 47 12 23 5 28 7 5 3 8 4 11 1 1 6 30 13 13 24 Power 32 | 1 . 1 8 3 4 . . . . . . . 1 . . 1 5 1 3 4 Engine 15 | 1 . 1 4 3 4 . . . . . . . 1 . . 1 . . . . Core 7 | . . . 4 . . . . . . . . . . . . . 2 . 1 . Reactor 10 | . . . . . . . . . . . . . . . . . 3 1 2 4 Propulsion 39 | 2 4 1 16 4 1 4 . . . . . . . . . 1 1 . . 5 Treads 7 | . . . 6 . . . . . . . . . . . . . . . . 1 Leg 15 | 2 . . 5 4 . 4 . . . . . . . . . . . . . . Wheel . | . . . . . . . . . . . . . . . . . . . . . Hover . | . . . . . . . . . . . . . . . . . . . . . Flight 17 | . 4 1 5 . 1 . . . . . . . . . . 1 1 . . 4 Utility 129 | 2 4 . 12 1 7 1 22 4 2 3 8 3 7 1 1 4 21 11 3 12 Device 80 | . 2 . 6 . 3 1 12 1 1 1 5 2 7 1 . 3 16 7 2 10 Storage 2 | . . . 1 . . . . 1 . . . . . . . . . . . . Processor 20 | 1 1 . 2 . 1 . 4 1 . . 2 1 . . . 1 3 3 . . Hackware 6 | . . . . 1 . . 1 . . 2 . . . . 1 . 1 . . . Protection 20 | 1 1 . 3 . 3 . 5 1 1 . 1 . . . . . 1 . 1 2 Artifact 1 | . . . . . . . . . . . . . . . . . . 1 . . Weapon 62 | 2 2 2 11 4 11 . 6 3 3 . . 1 3 . . . 3 1 7 3 Energy Gun 17 | . . . 5 1 4 . 2 1 2 . . . . . . . . . 1 1 Energy Cannon 15 | . 1 . 2 . 3 . 2 1 . . . . . . . . 2 . 2 2 Ballistic Gun 11 | 2 . . 2 2 3 . . . 1 . . . . . . . . 1 . . Ballistic Cannon 4 | . 1 . . . . . . 1 . . . 1 . . . . . . 1 . Launcher 7 | . . 1 1 . 1 . 2 . . . . . . . . . 1 . 1 . Special Weapon 1 | . . . . . . . . . . . . . . . . . . . 1 . Impact Weapon 1 | . . . . 1 . . . . . . . . . . . . . . . . Slashing Weapon 5 | . . 1 1 . . . . . . . . . 2 . . . . . 1 . Piercing Weapon 1 | . . . . . . . . . . . . . 1 . . . . . . . Special Melee Weapon . | . . . . . . . . . . . . . . . . . . . . . Unidentified Prototypes 49 | . . . 9 3 8 1 6 1 2 . 1 . . . 1 . 8 8 . 1 Corrupted Parts 2 | . . . . . . . . . 1 1 . . . . . . . . . . System Corruption 7 | . . . . . . . . . 3 4 . . . . . . . . . . Parts Lost 55 | . . 1 7 . 2 . 4 2 . . 11 6 . . . 5 1 4 2 10 Power 8 | . . . 2 . . . . . . . . 1 . . . 1 . 1 2 1 Propulsion 8 | . . . 3 . . . . 1 . . 3 1 . . . . . . . . Utility 27 | . . 1 2 . 1 . 3 1 . . 5 3 . . . 3 . 2 . 6 Weapon 12 | . . . . . 1 . 1 . . . 3 1 . . . 1 1 1 . 3 Highest Loss Streak 4 | . . 1 3 . 1 . 1 1 . . 3 4 . . . 2 1 2 2 4 To Critical Strikes . | . . . . . . . . . . . . . . . . . . . . . Average Backups 4 | . 3 4 6 13 12 8 3 4 2 3 3 2 2 2 4 3 4 4 3 3 Power . | . . 1 . . 1 1 . . . . . . . . . . . . . . Propulsion . | . . . 2 3 3 1 . . . . . . . . . . . . . . Utility 2 | . 1 1 . 3 2 1 3 4 2 3 3 2 2 2 3 2 2 2 1 1 Weapon 1 | . . 1 3 7 5 3 . . . . . . . . . . . . . . Tool/Special . | . . . . . . . . . . . . . . . . . . . . . Unused Backups 29 | . . . 2 . 3 6 12 . 1 1 . . . . . . 1 1 . 2 Power 8 | . . . . . . 2 6 . . . . . . . . . . . . . Propulsion 2 | . . . . . . . 2 . . . . . . . . . . . . . Utility 5 | . . . . . 1 . 2 . 1 . . . . . . . 1 . . . Weapon 10 | . . . 2 . 2 4 2 . . . . . . . . . . . . . Tool/Special 4 | . . . . . . . . . . 1 . . . . . . . 1 . 2 Average Slot Usage (%) 71 | . 89 95 97 97 99 70 61 66 65 71 69 36 50 65 64 63 69 70 67 65 Engine 3 | . 12 12 4 5 13 9 3 4 1 . . . 1 . . 1 1 . . . Core 1 | . . . 3 7 . . 1 . 3 . 2 . 2 5 5 2 3 2 . . Reactor 1 | . . . . . . . . . . 5 2 3 . . . 2 4 6 7 5 Treads 4 | . . . 26 18 . . . . . . . . 2 2 . . . . . 1 Leg 5 | . 6 . 1 8 28 18 9 4 5 3 1 . . 1 5 1 . . . . Flight 2 | . 18 25 2 . . . . . . . 2 3 2 . . 8 5 4 4 3 Device 16 | . 8 9 12 7 6 9 12 20 25 21 20 12 13 25 21 18 21 22 28 29 Storage 1 | . . . 3 7 7 3 . . . . . . . . . . . . . . Processor 10 | . 15 13 14 14 14 6 11 10 5 5 8 6 10 10 10 8 8 12 8 7 Hackware 4 | . . . . 6 7 6 5 5 5 10 8 5 5 5 8 6 4 4 4 1 Protection 5 | . 12 13 9 6 7 3 5 2 5 5 5 3 5 5 5 4 2 . 2 . Energy Gun 2 | . . . 7 . . . 1 . 1 . . . 1 5 5 5 5 4 3 2 Energy Cannon 3 | . 1 . 3 . 1 8 2 8 . . 2 2 . . . . 6 8 4 1 Ballistic Gun 3 | . 5 . 1 13 11 . 1 . 3 10 9 . . . . . 2 4 4 2 Ballistic Cannon 2 | . 8 . . . . . 3 6 6 5 2 . . . . 2 . . . 4 Slashing Weapon 1 | . . 8 3 . . . . . . . . . 3 5 5 1 . . . . Peak Build Rating 197 | 7 10 15 43 53 60 78 127 121 117 130 124 77 106 111 107 114 170 172 174 197 Average Rating 95 | 5 9 13 38 49 55 63 108 103 105 122 116 62 80 107 106 104 148 162 163 180 On Entrance 82 | . 7 10 15 43 53 59 77 121 91 116 118 70 59 106 106 107 103 166 148 167 Naked Turns . | . . . . . . . . . . . . . . . . . . . . . Heaviest Build 136 | 6 9 9 46 52 61 61 64 60 65 67 68 53 42 42 48 46 99 93 93 136 Greatest Support 195 | 20 20 8 112 100 72 96 96 60 60 60 98 34 66 104 62 68 122 102 102 195 Greatest Overweight (x) 6 | . . 1 5 2 . 6 1 3 1 1 1 2 1 . . . 1 . . 2 Average Overweight (x) . | . . . . . . . . . . . . . . . . . . . . . Largest Inventory Capacity 15 | 5 5 5 15 15 15 15 5 5 5 5 5 5 5 5 5 5 5 5 5 5 Average Capacity 6 | 5 5 5 9 15 15 10 5 5 5 5 5 5 5 5 5 5 5 5 5 5 Most Carried 15 | 1 5 5 15 15 15 15 5 5 5 4 5 5 3 3 5 5 5 5 5 5 Average Carried 5 | . 3 4 8 14 14 9 3 4 2 3 3 2 2 2 4 3 4 4 3 3 Final Capacity 15 | 5 5 5 15 15 15 5 5 5 5 5 5 5 5 5 5 5 5 5 5 5 Final Carried 15 | 1 5 5 15 15 14 5 4 4 3 4 3 2 2 3 5 2 5 4 5 4 Scrap Engine Consumption 325 | . . . . . . 32 67 16 14 12 29 7 20 16 4 12 70 1 3 22 Constructs Created 18 | . . . . . . 3 1 1 . 1 2 1 2 . . 2 3 . 1 1 Constructs Modified 125 | . . . . . . 10 30 10 5 7 10 1 8 6 1 6 14 . 6 11 Class Distribution -------------------- 45% | Hacker-Mutant 29% | Hacker-Construct 9% | Hacker-Skirmisher 6% | Commander-Mutant 4% | Hacker-Sprinter Dominant Class ---------------- Hacker-Sprinter | -10/Materials Hacker-Sprinter | -10/Subcaves Hacker-Mutant | -8/Materials Hacker-Mutant | -7/Factory Hacker-Mutant | -7/Storage Commander-Mutant | -7/Recycling Hacker-Mutant | -5/Factory Hacker-Construct | -5/Extension Hacker-Construct | -5/Cetus Hacker-Construct | -5/Archives Hacker-Construct | -5/Hub_04(d) Hacker-Mutant | -4/Factory Hacker-Mutant | -4/Upper Caves Hacker-Mutant | -4/Upper Caves Hacker-Mutant | -4/Zhirov Hacker-Mutant | -3/Proximity Caves Hacker-Construct | -3/Research Hacker-Construct | -3/Quarantine Hacker-Construct | -2/Research Hacker-Construct | -1/Access Resources | -11 -10 -10 -8 -7 -7 -7 -5 -5 -5 -5 -5 -4 -4 -4 -4 -3 -3 -3 -2 -1 ----------- Run | Yrd Mat Sub Mat Fac Sto Rec Fac Ext Cet Arc Hub Fac Upp Upp Zhi Pro Res Qua Res Acc Matter Collected 10322 | 263 171 463 762 768 760 236 2223 575 247 274 528 53 185 20 20 355 856 524 474 565 Remotely 78 | . 78 . . . . . . . . . . . . . . . . . . . Salvage Created 19224 | 108 131 399 3219 1189 1072 422 4544 1008 252 203 859 . 1194 795 250 891 574 571 688 855 Parts 843 | 4 19 34 164 54 50 15 200 35 11 16 40 . 22 33 . 26 13 27 47 33 Haulers Intercepted 13 | . . . 5 . 4 . 3 . . . . . . . . . . . 1 . Recyclers Shooed 3 | . . . . . . . 3 . . . . . . . . . . . . . Parts Field Recycled 1 | . . . . . . . . . . . . . . . . . 1 . . . Retrieved Matter 67 | . . . . . . . . . . . . . . . . . 67 . . . Parts Self-Destructed . | . . . . . . . . . . . . . . . . . . . . . Prevented . | . . . . . . . . . . . . . . . . . . . . . Kills | -11 -10 -10 -8 -7 -7 -7 -5 -5 -5 -5 -5 -4 -4 -4 -4 -3 -3 -3 -2 -1 ------- Run | Yrd Mat Sub Mat Fac Sto Rec Fac Ext Cet Arc Hub Fac Upp Upp Zhi Pro Res Qua Res Acc Combat Hostiles Destroyed 286 | . 4 16 47 24 15 6 69 15 3 . 18 . 3 15 . 17 8 7 9 10 Melee 22 | . . . 10 1 . . . . . . . . 3 8 . . . . . . Guns 125 | . 2 . 15 22 14 . 20 . . . 15 . . 6 . 16 4 4 4 3 Cannons 104 | . 2 . 17 . 1 6 42 14 3 . 3 . . . . . 3 3 5 5 AOE 24 | . . 16 1 1 . . 6 . . . . . . . . . . . . . Classes Destroyed 26 | 2 2 4 6 2 . . 1 . . . 1 . 2 . . 1 2 1 1 1 Worker 13 | . . . 6 . 1 . 6 . . . . . . . . . . . . . Builder 10 | . . . 4 . . . 2 1 . . 1 . . . . . 1 . . 1 Tunneler 2 | 1 . . . . . . . . . . . . . . . . 1 . . . Hauler 13 | . . . 5 . 4 . 3 . . . . . . . . . . . 1 . Recycler 12 | 1 1 . 2 2 . . 5 1 . . . . . . . . . . . . Operator 19 | . . . 3 1 . . 1 1 . 8 . . . . . . 1 3 . 1 Drone 3 | . . . . . . . . . . . . . . . . 2 . . . 1 Turret 2 | . . 2 . . . . . . . . . . . . . . . . . . Watcher 33 | . 3 . 5 3 1 . 9 2 2 . 1 . . . . . . 3 2 2 Swarmer 56 | . 4 4 4 10 . . 12 1 . . 4 . . 10 . 5 . 2 . . Cutter 3 | . . . . . . . . . . . . . . . . . . . 3 . Grunt 74 | . . 1 26 6 7 . 13 6 . . 1 . 2 4 . 5 3 . . . Brawler 10 | . . . 4 . . . 1 2 . . . . 1 . . 2 . . . . Duelist 4 | . . . 2 . 1 . 1 . . . . . . . . . . . . . Protector 2 | . . . . . . . . . . . 1 . . . . 1 . . . . Researcher 1 | . . . . . . . . . . . . . . . . . . 1 . . Sentry 53 | . . 1 11 3 5 2 14 1 . . 6 . . 1 . 1 3 . 1 4 Hunter 13 | . . . . 3 2 . 6 2 . . . . . . . . . . . . Programmer 43 | . . . . 2 . 1 21 2 . . 3 . . . . . . 5 5 4 Heavy 1 | . . . . . . . . . . . . . . . . . . . . 1 Behemoth 3 | . . . . . . . 1 1 . . . . . . . 1 . . . . Cetus Guard 3 | . . . . . . . . . 3 . . . . . . . . . . . Lightning 3 | . . . . . . . . . . . 3 . . . . . . . . . Striker 1 | . . . . . . . . . . . . . . . . . 1 . . . Executioner 1 | . . . . . . . . . . . . . . . . . 1 . . . Subdweller 13 | . . 10 . . . 3 . . . . . . . . . . . . . . Decomposer 8 | . . . . . . . . . . . . . 2 3 . 3 . . . . Packrat 2 | . . . . . . . . . . . . . 2 . . . . . . . Samaritan 5 | . . . . . . . . . . . . . 3 2 . . . . . . Savage 1 | . . . . . . . . . . . . . 1 . . . . . . . Butcher 2 | . . . . . . . . . . . . . 2 . . . . . . . Mutant 1 | . . . . . . . . . . . . . 1 . . . . . . . Best Kill Streak 13 | 2 5 6 9 3 6 2 13 4 3 2 3 . 2 6 . 3 2 5 4 3 Combat Bots Only 8 | . 4 4 6 3 4 2 8 4 2 . 3 . 2 6 . 3 2 2 2 3 Max Kills in Single Turn 5 | 1 1 2 2 2 1 1 5 2 1 1 2 . 1 1 . 1 1 1 2 2 Gunslinging 1 | . . . . 1 . . . . . . . . . . . . . . . . Exploded 3 | . . 2 1 1 . . 3 . . . . . . . . . . . . . Melee 1 | . . . 1 1 . . . . . . . . 1 1 . . . . . . Uniques/NPCs Destroyed . | . . . . . . . . . . . . . . . . . . . . . Combat | -11 -10 -10 -8 -7 -7 -7 -5 -5 -5 -5 -5 -4 -4 -4 -4 -3 -3 -3 -2 -1 -------- Run | Yrd Mat Sub Mat Fac Sto Rec Fac Ext Cet Arc Hub Fac Upp Upp Zhi Pro Res Qua Res Acc Hostile Shots Fired 2647 | . 14 72 183 173 165 70 543 66 23 5 275 169 24 91 . 153 100 80 57 384 Missed 964 | . 9 43 55 46 67 28 190 8 8 2 88 73 12 27 . 53 39 34 30 152 Hits 1683 | . 5 29 128 127 98 42 353 58 15 3 187 96 12 64 . 100 61 46 27 232 Melee 20 | . . . 2 . 1 . 1 2 . . 1 . 1 . . 4 . . 8 . Projectile 1663 | . 5 29 126 127 97 42 352 56 15 3 186 96 11 64 . 96 61 46 19 232 AOE 11 | . . . . . . . 6 . . . 3 . . . . . . 1 1 . Critical Strikes 84 | . . 1 7 2 2 . 15 3 3 . 12 4 . 1 . 9 5 5 2 13 Actively Blocked 18 | . . 1 1 . . . . . . . . . . . . . . 1 2 13 Part Disruptions 6 | . . . . 1 . . . . . . 2 . . . . . . 1 . 2 Actively Blocked 3 | . . . . . . . . . . . 2 . . . . . . . . 1 Damage Taken 21700 | . 20 200 1294 885 672 255 4672 504 151 44 3817 944 165 731 . 1450 870 1008 814 3204 Core 2398 | . 3 73 148 95 71 36 447 26 8 . 301 282 38 111 . 128 81 128 16 406 Absorbed by Shields 1074 | . . . . . . 40 111 214 113 . . . . . . . 163 56 . 377 Redirected to Core 120 | . . . . . . . . . . . . . . . . . . . . 120 Redirected to Shielding 156 | . . 4 6 . . . 56 . . . . . . . . . . . 90 . Ignored by Resistances 13283 | . 15 134 785 562 439 196 2842 420 155 26 2188 570 101 438 . 843 599 431 456 2083 Regen/Repaired (Parts) 8048 | . . . 210 246 35 285 2129 299 78 63 1102 147 418 501 63 675 594 . 320 883 Core Remaining (%) 67 | 100 . 69 73 . . 71 . . . . 21 . . . . 51 . 52 98 74 Volleys Fired 1200 | 4 13 46 162 69 71 27 294 52 55 24 79 2 28 36 . 83 50 48 25 32 Largest 4 | 2 2 1 2 2 2 2 3 3 3 3 3 1 1 1 . 2 4 4 4 4 Hottest 373 | 40 40 60 100 50 90 60 179 179 240 227 208 76 60 60 . 107 366 366 349 373 Shots Fired 2357 | 8 15 46 220 137 142 54 548 147 89 61 207 2 28 36 . 119 144 163 78 113 Gun 1282 | 8 4 . 117 137 125 . 258 . 25 37 127 . 28 36 . 118 78 91 43 50 Cannon 1032 | . 11 3 103 . 17 54 290 147 64 24 80 2 . . . 1 66 72 35 63 Launcher 43 | . . 43 . . . . . . . . . . . . . . . . . . Special . | . . . . . . . . . . . . . . . . . . . . . Kinetic 1162 | 8 15 . 15 137 125 . 379 62 86 58 162 1 . . . 54 23 . 10 27 Thermal 867 | . . 3 103 . 17 54 75 85 3 3 45 1 28 36 . 65 95 139 68 47 Explosive 43 | . . 43 . . . . . . . . . . . . . . . . . . Electromagnetic 285 | . . . 102 . . . 94 . . . . . . . . . 26 24 . 39 Robot Hit Streak 96 | 7 8 25 53 19 26 29 96 41 28 24 33 . 26 28 . 23 32 28 11 19 Robot Miss Streak 6 | . 2 3 3 2 1 2 2 1 1 1 3 1 . 1 . 6 4 4 2 2 Penetration Max 2 | . . . . . . . 1 . 1 . 1 . . . . . . . 2 . Secondary Targets 5 | . . . . 4 . . . . . . . . . . . 1 . . . . Max Gunslinging Chain 1 | . . . . 1 . . . . . . . . . . . 1 . . . . Shots Hit Robots 1818 | 7 11 31 223 119 121 42 475 112 26 48 149 . 48 52 5 96 87 54 48 64 Core Hits 746 | 4 8 37 109 56 43 10 179 36 13 21 48 . 23 24 3 40 23 21 24 24 Critical Kills 10 | . . . 1 . . . 3 1 . . 1 . . . . . 1 1 . 2 Critical Parts Destroyed 10 | . . . . 2 . . 5 1 . 1 1 . . . . . . . . . Critical Strikes 80 | . . . 9 2 . . 18 4 1 7 11 . 2 1 . 6 7 5 2 5 Burn 4 | . . . . . . . . . . . . . . . . . 2 . 2 . Meltdown 5 | . . . 1 . . . . 1 . . . . . . . . 1 1 . 1 Destroy 16 | . . . . 1 . . 9 1 . 1 2 . . . . . . . . 2 Blast 32 | . . . . . . . 7 2 1 6 9 . . . . 6 1 . . . Corrupt 11 | . . . . . . . 2 . . . . . . . . . 3 4 . 2 Smash 1 | . . . . 1 . . . . . . . . . . . . . . . . Sever 10 | . . . 8 . . . . . . . . . 1 1 . . . . . . Impale 1 | . . . . . . . . . . . . . 1 . . . . . . . Melee Attacks 154 | . . 31 44 10 . . . . . . . . 41 21 5 2 . . . . Impact 10 | . . . . 10 . . . . . . . . . . . . . . . . Slashing 138 | . . 31 44 . . . . . . . . . 35 21 5 2 . . . . Piercing 6 | . . . . . . . . . . . . . 6 . . . . . . . Sneak Attacks 24 | . . 1 7 1 . . . . . . . . 6 7 . 2 . . . . Combat Hostiles . | . . . . . . . . . . . . . . . . . . . . . Follow-up Attacks . | . . . . . . . . . . . . . . . . . . . . . Damage Inflicted 57104 | 53 172 2612 6000 2672 2293 1166 14848 3362 964 1363 4383 4 1982 2227 457 2891 2929 2261 2054 2411 Guns 23306 | 53 18 . 1965 1911 1997 . 5549 . 150 700 2523 . 836 1034 . 2719 1352 967 843 689 Cannons 23573 | . 154 51 2300 . 296 1166 7554 3347 814 663 1860 . . . . 24 1577 1294 1211 1262 Explosions 4914 | . . 2508 264 371 . . 1550 . . . . . . . . . . . . 221 Melee 4858 | . . 53 1471 390 . . . . . . . . 1146 1193 457 148 . . . . Ramming 453 | . . . . . . . 195 15 . . . 4 . . . . . . . 239 Kinetic 22920 | 53 172 . 260 1911 1997 . 9623 1248 964 1345 3245 . . . . 986 424 . 342 350 Thermal 20993 | . . 51 2564 371 296 1166 3321 2099 . 18 1138 . 836 1034 . 1757 1758 1832 1712 1040 Explosive 2729 | . . 2508 . . . . . . . . . . . . . . . . . 221 Electromagnetic 5151 | . . . 1705 . . . 1709 . . . . . . . . . 747 429 . 561 Impact 390 | . . . . 390 . . . . . . . . . . . . . . . . Slashing 4166 | . . 53 1471 . . . . . . . . . 844 1193 457 148 . . . . Piercing 302 | . . . . . . . . . . . . . 302 . . . . . . . Highest Corruption 11 | . . . 1 3 3 3 4 3 3 5 8 . . . . 3 3 11 1 6 Average Corruption 2 | . . . 1 2 3 3 2 2 1 1 5 . . . . 3 1 4 1 4 Corruption Purged 33 | . . . . . . . 4 . 5 5 10 . . . . . 3 6 . . Corruption Blocked 11 | . . . . . . . 10 1 . . . . . . . . . . . . Effects 157 | . . . 16 8 15 30 4 6 2 4 16 . . . . 17 . 23 1 15 Message Errors 30 | . . . 1 2 4 5 1 2 . . 3 . . . . 5 . 4 . 3 Matter Fused 50 | . . . 8 3 5 6 2 . 2 1 3 . . . . 10 . 7 1 2 Heat Flow Errors 21 | . . . 1 2 2 5 . 3 . . 2 . . . . . . 3 . 3 Energy Discharges 17 | . . . 2 . 1 6 . . . 1 2 . . . . 1 . 3 . 1 Parts Rejected 2 | . . . . . . . . . . 1 1 . . . . . . . . . Parts Fused 1 | . . . . . . . . . . . . . . . . . . 1 . . Data Loss (minor) 15 | . . . 1 . 2 4 1 1 . . 3 . . . . . . 1 . 2 Data Loss (major) 6 | . . . . . . 3 . . . 1 . . . . . . . 1 . 1 Misfires 3 | . . . 1 . 1 . . . . . . . . . . . . . . 1 Alerts 5 | . . . 1 . . 1 . . . . . . . . . 1 . 1 . 1 Weapon Failures 7 | . . . 1 1 . . . . . . 2 . . . . . . 2 . 1 Overload Shots 1 | . . . . . . . . . 1 . . . . . . . . . . . Overflow Damage 1914 | . . 45 91 171 . . 560 57 . 56 74 . 178 287 150 . 76 64 8 97 Projectiles 592 | . . . 30 . . . 206 57 . 56 74 . . . . . 76 64 8 21 Explosions 500 | . . 45 . 101 . . 354 . . . . . . . . . . . . . Melee 822 | . . . 61 70 . . . . . . . . 178 287 150 . . . . 76 Knockbacks 65 | . . . . 3 . . 39 9 . 5 3 . . . . . . . 3 3 Impact 6 | . . . . 3 . . 2 . . . . . . . . . . . . 1 Kinetic 54 | . . . . . . . 35 7 . 5 3 . . . . . . . 2 2 Secondary 5 | . . . . . . . 2 2 . . . . . . . . . . 1 . Self-Inflicted Damage 459 | . . 3 40 . . . 236 . . . . . . . . . . . 57 123 Shots 10 | . . 1 2 . . . 4 . . . . . . . . . . . 1 2 Rammed 3 | . . . . . . . . . . . . . . . . . . . . 3 Targets Rammed 19 | . . . . . . . 13 1 . . . 1 . . . . . . . 4 Kicked 15 | . . . . . . . 13 1 . . . 1 . . . . . . . . Crushed 1 | . . . . . . . . . . . . . . . . . . . . 1 Highest Temperature 577 | . 12 . 246 145 352 204 312 215 110 122 421 31 178 13 . . 466 390 450 577 Average Temperature 82 | . 6 . 58 34 82 72 43 18 48 33 118 18 71 4 . . 132 114 135 166 Received Heat Transfer 4459 | . . 114 999 228 366 65 1051 178 4 . 438 125 69 114 . 377 63 9 9 250 Effects 23 | . . . 1 . . . 3 . . . 4 . . . . . 4 1 1 9 Shutdowns 8 | . . . . . . . . . . . 2 . . . . . 2 . . 4 Energy Bleed 5 | . . . . . . . . . . . 1 . . . . . 2 1 . 1 Interference 4 | . . . 1 . . . 3 . . . . . . . . . . . . . Matter Decay 1 | . . . . . . . . . . . . . . . . . . . 1 . Short Circuit 2 | . . . . . . . . . . . 1 . . . . . . . . 1 Damage (major) 3 | . . . . . . . . . . . . . . . . . . . . 3 Siege Activations . | . . . . . . . . . . . . . . . . . . . . . Martial Activations . | . . . . . . . . . . . . . . . . . . . . . Shielding Activations . | . . . . . . . . . . . . . . . . . . . . . Robots Disrupted 1 | . . . . . . . . . . . . . . . . . . . . 1 Combat Hostiles 1 | . . . . . . . . . . . . . . . . . . . . 1 Robots Corrupted 5 | . . . 3 . . . 1 . . . . . . . . . . . . 1 Combat Hostiles 5 | . . . 3 . . . 1 . . . . . . . . . . . . 1 Parts Fried 27 | . . . 15 1 . . 3 1 . . . . . . . . . 4 . 3 Impact Corruptions 6 | . . . . 4 . . . . . . . . . . . . . . . 2 Robots Melted 7 | . . . 1 . . . . 1 . . . . . 1 . 1 1 1 . 1 Combat Hostiles 6 | . . . 1 . . . . 1 . . . . . 1 . 1 1 . . 1 Parts Melted 45 | . . . 3 . 3 9 5 6 . . . . . 7 . 2 . 3 5 2 Heat Transferred 24885 | . . 111 3754 250 407 1591 3733 2900 . 37 . . 1300 1600 . 2727 2035 1702 1813 925 Parts Sabotaged . | . . . . . . . . . . . . . . . . . . . . . Parts Stolen . | . . . . . . . . . . . . . . . . . . . . . Parts Stripped . | . . . . . . . . . . . . . . . . . . . . . Power Chain Reactions 11 | . . . 8 . . . 3 . . . . . . . . . . . . . Alert | -11 -10 -10 -8 -7 -7 -7 -5 -5 -5 -5 -5 -4 -4 -4 -4 -3 -3 -3 -2 -1 ------- Run | Yrd Mat Sub Mat Fac Sto Rec Fac Ext Cet Arc Hub Fac Upp Upp Zhi Pro Res Qua Res Acc Maximum Alert Level 3 | . . . . . . . 3 . . . 1 . . . . . 3 . . . Low Security (%) 90 | 100 100 . 100 100 100 100 61 100 100 100 99 100 . . . . 80 100 100 100 Level 1 1 | . . . . . . . 9 . . . . . . . . . . . . . Level 2 4 | . . . . . . . 22 . . . . . . . . . . . . . Level 3 2 | . . . . . . . 7 . . . . . . . . . 19 . . . Level 4 . | . . . . . . . . . . . . . . . . . . . . . Level 5 . | . . . . . . . . . . . . . . . . . . . . . High Security . | . . . . . . . . . . . . . . . . . . . . . Max Security . | . . . . . . . . . . . . . . . . . . . . . Peak Influence 770 | 10 105 . 188 152 138 56 769 81 82 98 215 96 . . . . 770 83 155 101 Initial 750 | . . . 38 4 8 12 200 75 . . . 72 . . . . 750 15 . 56 Average 75 | . 20 . 37 51 48 3 223 15 11 7 44 18 . . . . 153 14 35 21 Influence Increases 13218 | 10 232 340 1451 771 732 280 3370 700 222 194 1157 189 120 320 10 355 1239 469 407 650 Destroy 0b10 Robot/C 6160 | . 80 160 940 480 440 80 1560 440 160 80 420 . 60 300 . 280 160 160 180 180 Destroy 0b10 Robot/NC 595 | 10 20 . 125 30 40 15 140 35 10 40 15 . 5 . 10 15 15 30 15 25 Destroy Leader 1484 | . 26 . 280 156 142 . 416 56 . . 122 . 10 20 . 30 40 36 76 74 Allied During Kill 204 | . . . . . 42 13 31 22 28 32 36 . . . . . . . . . Trap Triggered on 0b10 10 | . . . . . . . . . . . . . . . . . . 10 . . Successful Hack 775 | . 16 . 4 14 40 22 132 44 . . 41 16 . . . . 94 125 72 155 Select Force Hacks 170 | . . . . . . 120 . . . . 50 . . . . . . . . . Disable Machine 336 | . . . 24 48 8 . 92 12 12 24 24 4 . . . . 24 36 4 24 Destroy Structure 1079 | . . . 33 28 5 30 454 46 12 18 134 4 . . . . 36 42 45 192 Advance Influence 950 | . . . . . . . 200 . . . . . . . . . 750 . . . Partial Spotted 135 | . . . 15 . . . 60 . . . . . . . . . 30 15 15 . Lose Combat Pursuer 1320 | . 90 180 30 15 15 . 285 45 . . 315 165 45 . . 30 90 15 . . Influence Decreases 13120 | 10 202 270 1536 759 713 326 3159 911 222 194 957 297 212 320 10 355 1201 507 283 676 Entered New Map 548 | . . 19 62 11 19 34 . 136 . . . 128 48 . . . . 23 . 68 Time Decay 10828 | 10 202 251 1414 748 555 272 2842 679 182 194 658 159 164 320 10 315 591 460 263 539 Lost Part 388 | . . . 60 . 10 . 40 20 . . 95 10 . . . 40 10 24 20 59 Lost Ally 444 | . . . . . 129 20 127 58 40 . 60 . . . . . . . . 10 Purge Threat 912 | . . . . . . . 150 18 . . 144 . . . . . 600 . . . Squads Dispatched 91 | . 1 . 9 10 7 . 28 . . . 11 4 . . . 1 4 5 5 6 Investigation 17 | . 1 . . 2 2 . 5 . . . 2 1 . . . . 2 1 . 1 Extermination 30 | . . . . 3 2 . 12 . . . 3 1 . . . . . 3 2 4 Reinforcement 25 | . . . 4 2 3 . 7 . . . . 2 . . . . 2 1 3 1 Assault 1 | . . . . . . . . . . . . . . . . 1 . . . . Garrison 18 | . . . 5 3 . . 4 . . . 6 . . . . . . . . . Intercept . | . . . . . . . . . . . . . . . . . . . . . Searches Triggered . | . . . . . . . . . . . . . . . . . . . . . Construction Impeded 5 | . . . 1 . . . 4 . . . . . . . . . . . . . Haulers Reinforced 4 | . . . . . 2 . 2 . . . . . . . . . . . . . Active Scanning Responses . | . . . . . . . . . . . . . . . . . . . . . Cargo Convoy Interrupts . | . . . . . . . . . . . . . . . . . . . . . Stealth | -11 -10 -10 -8 -7 -7 -7 -5 -5 -5 -5 -5 -4 -4 -4 -4 -3 -3 -3 -2 -1 --------- Run | Yrd Mat Sub Mat Fac Sto Rec Fac Ext Cet Arc Hub Fac Upp Upp Zhi Pro Res Qua Res Acc Distress Signals 36 | . 3 . 5 2 4 . 1 2 2 . 3 1 . . . . 4 . . 9 Communications Jammed 126 | . . . . . . . . . . . . . . . . . 4 10 11 101 Distress Signals 83 | . . . . . . . . . . . . . . . . . 4 10 7 62 Times Spotted 616 | . 13 21 60 29 25 6 113 28 10 12 64 24 7 15 . 23 29 31 23 83 Peak Tracking Total 19 | . 3 6 6 4 4 2 6 4 5 2 19 10 3 7 . 6 6 6 8 17 Tactical Retreats 69 | . 4 2 2 1 1 . 14 2 . . 9 5 2 . . 2 3 1 5 16 Traps | -11 -10 -10 -8 -7 -7 -7 -5 -5 -5 -5 -5 -4 -4 -4 -4 -3 -3 -3 -2 -1 ------- Run | Yrd Mat Sub Mat Fac Sto Rec Fac Ext Cet Arc Hub Fac Upp Upp Zhi Pro Res Qua Res Acc Traps Triggered 21 | . . . 7 1 1 . 4 3 . . . . . . . . . . . 5 Indirectly . | . . . . . . . . . . . . . . . . . . . . . Trap Hack Attempts . | . . . . . . . . . . . . . . . . . . . . . Triggered . | . . . . . . . . . . . . . . . . . . . . . Disarmed 6 | . 6 . . . . . . . . . . . . . . . . . . . Reprogrammed 6 | . . . . . . . . . . . . . . . . . . 6 . . Reused 1 | . . . . . . . . . . . . . . . . . . 1 . . Traps Extracted . | . . . . . . . . . . . . . . . . . . . . . Installed . | . . . . . . . . . . . . . . . . . . . . . Triggered 1 | . . . . . . . . . . . . . . . . . . 1 . . Machines | -11 -10 -10 -8 -7 -7 -7 -5 -5 -5 -5 -5 -4 -4 -4 -4 -3 -3 -3 -2 -1 ---------- Run | Yrd Mat Sub Mat Fac Sto Rec Fac Ext Cet Arc Hub Fac Upp Upp Zhi Pro Res Qua Res Acc Machines Disabled 91 | . . 5 6 12 2 . 23 4 3 6 6 1 . 1 . . 6 9 1 6 Max in Single Turn 11 | . . 3 1 11 1 . 8 1 1 1 1 1 . 1 . . 1 1 1 2 Garrison Access 3 | . . . . . . . . . . . . . . . . . . 1 . 2 Network Hub 4 | . . . . . . . . . . . 4 . . . . . . . . . Energy Cycler 1 | . . . . . . . . 1 . . . . . . . . . . . . Machines Repaired . | . . . . . . . . . . . . . . . . . . . . . Machines Dismantled . | . . . . . . . . . . . . . . . . . . . . . Machines Sabotaged 1 | . . . . . . . . . . . 1 . . . . . . . . . Overloaded Fab Kills . | . . . . . . . . . . . . . . . . . . . . . Hacking | -11 -10 -10 -8 -7 -7 -7 -5 -5 -5 -5 -5 -4 -4 -4 -4 -3 -3 -3 -2 -1 --------- Run | Yrd Mat Sub Mat Fac Sto Rec Fac Ext Cet Arc Hub Fac Upp Upp Zhi Pro Res Qua Res Acc Machines Accessed 173 | . 10 2 15 7 10 9 32 19 2 . 12 4 1 1 9 . 7 13 6 14 Terminals 110 | . 8 . 9 1 9 4 18 18 2 . 12 2 . 1 . . 4 11 3 8 Fabricators 6 | . . . . 1 . . 3 . . . . 1 . . . . . . 1 . Repair Stations 10 | . . . 2 2 1 . 2 . . . . . . . . . 1 . . 2 Recycling Units 23 | . 2 . 2 2 . 4 6 1 . . . 1 . . . . 1 . 2 2 Scanalyzers 7 | . . . 2 1 . . 2 . . . . . . . . . 1 1 . . Garrison Access 4 | . . . . . . . 1 . . . . . . . . . . 1 . 2 Total Hacks 732 | . 38 12 39 19 21 35 114 78 8 . 74 32 1 4 47 . 52 84 27 47 Successful 472 | . 32 12 28 11 12 26 68 40 4 . 47 17 1 4 47 . 33 53 17 20 Failed 260 | . 6 . 11 8 9 9 46 38 4 . 27 15 . . . . 19 31 10 27 Catastrophic 25 | . . . 1 . . . 5 7 1 . 1 . . . . . 1 4 1 4 Database Lockouts . | . . . . . . . . . . . . . . . . . . . . . Manual 435 | . 29 . 29 7 10 27 65 62 2 . 65 22 . . . . 20 67 18 12 Terminals 524 | . 31 . 24 4 19 19 77 74 8 . 74 28 . 4 . . 34 79 17 32 Fabricators 20 | . . . . 3 . . 12 . . . . 2 . . . . . . 3 . Repair Stations 30 | . . . 4 5 2 . 5 . . . . . . . . . 7 . . 7 Recycling Units 69 | . 7 . 6 5 . 13 14 4 . . . 2 . . . . 7 . 7 4 Scanalyzers 18 | . . . 5 2 . . 5 . . . . . . . . . 4 2 . . Garrison Access 8 | . . . . . . . 1 . . . . . . . . . . 3 . 4 Terminal Hacks 238 | . 12 12 3 . 6 8 21 23 4 . 29 10 1 4 47 . 14 33 3 8 Record 61 | . . 11 . . . 1 . . 4 . . . . 4 36 . 1 4 . . Part Schematic 12 | . . . . . . . 2 4 . . . 2 . . 3 . 1 . . . Robot Analysis 40 | . 4 . 1 . . 4 4 6 . . 9 . . . 4 . . 7 1 . Prototype ID Bank 6 | . 1 . . . . . . . . . . . . . 4 . . 1 . . Open Door 17 | . . . . . 4 . . 8 . . . . 1 . . . . . . 4 Level Access Points 1 | . . . . . . . . . . . . . . . . . . 1 . . Branch Access Points 3 | . . . . . . . 1 . . . 1 . . . . . . 1 . . Emergency Access Points 8 | . . . . . . . . . . . 3 1 . . . . 1 2 . 1 Machine Index 2 | . . . . . . . . 1 . . 1 . . . . . . . . . Terminal Index 6 | . 1 . 1 . . 1 1 . . . 1 . . . . . . 1 . . Alert Level 12 | . . . . . . . . 3 . . 3 1 . . . . 3 2 . . Unreport Threat 9 | . . . . . . . 1 1 . . 2 . . . . . 4 . . 1 Locate Traps 20 | . 1 . 1 . 2 . 4 . . . 3 1 . . . . 2 3 1 2 Disarm Traps 1 | . 1 . . . . . . . . . . . . . . . . . . . Reprogram Traps 1 | . . . . . . . . . . . . . . . . . . 1 . . Dispatch Records 8 | . . . . . . . 2 . . . . 1 . . . . 1 3 1 . Investigation Status 1 | . . . . . . . . . . . . . . . . . . 1 . . Extermination Status 1 | . . . . . . . . . . . 1 . . . . . . . . . Recall Investigation 3 | . 1 . . . . . . . . . 1 1 . . . . . . . . Recall Extermination 5 | . . . . . . . 1 . . . 1 1 . . . . . 2 . . Recall Reinforcements 7 | . . . . . . . 3 . . . . 2 . . . . 1 1 . . Hauler Manifests 2 | . 1 . . . . . . . . . . . . . . . . 1 . . Registered Components 4 | . 1 . . . . . 1 . . . 1 . . . . . . 1 . . Registered Prototypes 4 | . 1 . . . . . 1 . . . 1 . . . . . . 1 . . Zone Layout 1 | . . . . . . . . . . . 1 . . . . . . . . . Proto ID Catalog 1 | . . 1 . . . . . . . . . . . . . . . . . . Release Object 2 | . . . . . . 2 . . . . . . . . . . . . . . Fabricator Hacks 12 | . . . . . . . 10 . . . . 1 . . . . . . 1 . Network Status 1 | . . . . . . . . . . . . . . . . . . . 1 . Load Schematic 5 | . . . . . . . 5 . . . . . . . . . . . . . Build 6 | . . . . . . . 5 . . . . 1 . . . . . . . . Repair Station Hacks 19 | . . . 4 4 2 . 4 . . . . . . . . . 2 . . 3 Scan Component 10 | . . . 2 2 1 . 2 . . . . . . . . . 1 . . 2 Repair 9 | . . . 2 2 1 . 2 . . . . . . . . . 1 . . 1 Recycling Unit Hacks 23 | . 2 . 2 2 . 4 5 1 . . . 2 . . . . 1 . 2 2 Retrieve Components 23 | . 2 . 2 2 . 4 5 1 . . . 2 . . . . 1 . 2 2 Scanalyzer 14 | . . . 4 2 . . 2 . . . . . . . . . 4 2 . . Insert Component 7 | . . . 2 1 . . 1 . . . . . . . . . 2 1 . . Analyze 7 | . . . 2 1 . . 1 . . . . . . . . . 2 1 . . Garrison Access Hacks 4 | . . . . . . . 1 . . . . . . . . . . 1 . 2 Unlock Access 1 | . . . . . . . 1 . . . . . . . . . . . . . Seal Access 3 | . . . . . . . . . . . . . . . . . . 1 . 2 Unauthorized Hacks 162 | . 18 . 15 3 4 14 25 16 . . 18 4 . . . . 12 17 11 5 Terminals 133 | . 13 . 12 1 4 7 24 14 . . 18 4 . . . . 9 17 7 3 Assimilate 2 | . . . . . . . 1 . . . . . . . . . . . . 1 Botnet 73 | . 8 . 6 1 2 3 15 8 . . 11 2 . . . . 4 8 3 2 Operators 7 | . . . . . 2 1 1 . . . . . . . . . 1 1 1 . Skim 49 | . 5 . 6 . . 3 7 6 . . 5 2 . . . . 4 8 3 . Sabotage 2 | . . . . . . . . . . . 2 . . . . . . . . . Fabricators 2 | . . . . 1 . . . . . . . . . . . . . . 1 . Liberate 1 | . . . . 1 . . . . . . . . . . . . . . . . Haulers 1 | . . . . . . . . . . . . . . . . . . . 1 . Repair Stations . | . . . . . . . . . . . . . . . . . . . . . Recycling Units 27 | . 5 . 3 1 . 7 1 2 . . . . . . . . 3 . 3 2 Reject 11 | . 2 . 1 . . 2 1 1 . . . . . . . . 1 . 2 1 Recyclers 6 | . 1 . 1 . . 1 . . . . . . . . . . 1 . 1 1 Mask 6 | . 2 . 1 1 . . . 1 . . . . . . . . 1 . . . Tunnel 4 | . . . . . . 4 . . . . . . . . . . . . . . Scanalyzers . | . . . . . . . . . . . . . . . . . . . . . Garrison Access . | . . . . . . . . . . . . . . . . . . . . . Data Cores Recovered 5 | . . . . . . . . 1 . . . . . . . . 1 3 . . Used 1 | . . . . . . . . . . . . . . . . . . 1 . . Hacking Detections 127 | . 9 . 13 7 7 6 29 11 1 . 12 2 . 1 . . 6 9 5 9 Full Trace Events 11 | . 2 . 1 1 2 . 3 . . . . 1 . . . . . 1 . . Feedback Events . | . . . . . . . . . . . . . . . . . . . . . Feedback Blocked . | . . . . . . . . . . . . . . . . . . . . . Robot Schematics Acquired 1 | . . . . . . . . . . . . . . . . . . 1 . . Robots Built . | . . . . . . . . . . . . . . . . . . . . . Authchips . | . . . . . . . . . . . . . . . . . . . . . Time . | . . . . . . . . . . . . . . . . . . . . . Total Robot Build Rating . | . . . . . . . . . . . . . . . . . . . . . Part Schematics Acquired 19 | . . . 1 1 . . 3 4 . . . 2 . . 3 . 3 2 . . Parts Built 10 | . . . . . . . 9 . . . . 1 . . . . . . . . Authchips . | . . . . . . . . . . . . . . . . . . . . . Time 903 | . . . . . . . 681 . . . . 222 . . . . . . . . Total Part Build Rating 79 | . . . . . . . 70 . . . . 9 . . . . . . . . Parts Repaired 8 | . . . 2 2 1 . 2 . . . . . . . . . 1 . . . Time 243 | . . . 82 38 23 . 42 . . . . . . . . . 36 . . 22 Parts Recycled . | . . . . . . . . . . . . . . . . . . . . . Recycled Matter . | . . . . . . . . . . . . . . . . . . . . . Retrieved Matter . | . . . . . . . . . . . . . . . . . . . . . Retrieved Components 95 | . 10 . 20 . . 20 28 10 . . . 1 . . . . . . 2 4 Parts Scanalyzed 7 | . . . 2 1 . . 1 . . . . . . . . . 2 1 . . Part Schematics Acquired 6 | . . . 1 1 . . 1 . . . . . . . . . 2 1 . . Parts Damaged 2 | . . . . . . . . . . . . . . . . . 1 1 . . Bothacking | -11 -10 -10 -8 -7 -7 -7 -5 -5 -5 -5 -5 -4 -4 -4 -4 -3 -3 -3 -2 -1 ------------ Run | Yrd Mat Sub Mat Fac Sto Rec Fac Ext Cet Arc Hub Fac Upp Upp Zhi Pro Res Qua Res Acc Used RIF Installer . | . . . . . . . . . . . . . . . . . . . . . Robots Hacked . | . . . . . . . . . . . . . . . . . . . . . Non-combat . | . . . . . . . . . . . . . . . . . . . . . Combat . | . . . . . . . . . . . . . . . . . . . . . Robot Hacks Applied . | . . . . . . . . . . . . . . . . . . . . . Relay Couplers Released 1 | . . . . . . . . . . . . . . . . . . . . 1 Machine Destruction 1 | . . . . . . . . . . . . . . . . . . . . 1 Fabnet Peak Effective % . | . . . . . . . . . . . . . . . . . . . . . Robots Rewired 15 | . . . . . 1 14 . . . . . . . . . . . . . . Allies Hacked 1 | . . . . . . . 1 . . . . . . . . . . . . . Hacks Repelled . | . . . . . . . . . . . . . . . . . . . . . Allies | -11 -10 -10 -8 -7 -7 -7 -5 -5 -5 -5 -5 -4 -4 -4 -4 -3 -3 -3 -2 -1 -------- Run | Yrd Mat Sub Mat Fac Sto Rec Fac Ext Cet Arc Hub Fac Upp Upp Zhi Pro Res Qua Res Acc Total Allies 40 | . . . . . 10 14 1 9 5 . . . . . . . . . . 1 Largest Group 14 | . . . . . 10 14 12 6 6 5 5 . . . . . . . . 1 Highest-Rated Group 626 | . . . . . 173 321 285 310 626 473 473 . . . . . . . . 26 Highest-Rated Ally 159 | . . . . . 29 40 40 159 146 96 96 . . . . . . . . 26 Total Orders 9 | . . . . . . 2 6 . . . . . . . . . . . . 1 STAY 4 | . . . . . . 1 3 . . . . . . . . . . . . . ROAM 2 | . . . . . . . 1 . . . . . . . . . . . . 1 FOLLOW 3 | . . . . . . 1 2 . . . . . . . . . . . . . Ally Attacks 382 | . . . . . 100 21 57 107 46 24 27 . . . . . . . . . Total Damage 8070 | . . . . . 1203 243 1158 2306 1420 923 817 . . . . . . . . . Kills 46 | . . . . . 9 2 12 10 5 4 4 . . . . . . . . . Allies Corrupted 7 | . . . . . 1 . 2 . . . 4 . . . . . . . . . Allies Melted . | . . . . . . . . . . . . . . . . . . . . . Intel | -11 -10 -10 -8 -7 -7 -7 -5 -5 -5 -5 -5 -4 -4 -4 -4 -3 -3 -3 -2 -1 ------- Run | Yrd Mat Sub Mat Fac Sto Rec Fac Ext Cet Arc Hub Fac Upp Upp Zhi Pro Res Qua Res Acc Active Infowar (turns) 24215 | . 259 796 3271 1358 125 . 4690 2108 736 1480 925 373 1215 1097 52 854 1451 1438 668 1319 Optics 3909 | . 137 796 743 . . . 1296 . . . . . . . . . 363 574 . . Sensors 15880 | . . . 2528 1358 125 . 3394 2108 736 1480 435 79 . . . . 519 1309 668 1141 Terrain 4453 | . 122 613 413 . . . . . . . 490 294 1215 1097 52 157 . . . . Jamming 5572 | . . . . . . . . . . . . . . . . 697 1451 1438 668 1318 ECM 1474 | . . . . . . . . . . . . . . . . . . . 156 1318 Robot Analysis Total 40 | . 4 . 1 . . 4 4 6 . . 9 . . . 4 . . 7 1 . Derelict Logs Recovered 3 | . . 1 . . . . . . . . . . 1 1 . . . . . . Drone Launches . | . . . . . . . . . . . . . . . . . . . . . Drone Recoveries . | . . . . . . . . . . . . . . . . . . . . . Exploration | -11 -10 -10 -8 -7 -7 -7 -5 -5 -5 -5 -5 -4 -4 -4 -4 -3 -3 -3 -2 -1 ------------- Run | Yrd Mat Sub Mat Fac Sto Rec Fac Ext Cet Arc Hub Fac Upp Upp Zhi Pro Res Qua Res Acc Turns Passed 30091 | 73 505 796 3363 1358 895 1850 5166 2108 736 1480 1260 487 2510 1097 260 1251 1451 1438 668 1339 Spaces Moved 23640 | 49 677 1698 1915 753 483 1045 4205 1135 282 338 744 388 1828 1072 176 1254 1950 1432 701 1515 Core 288 | 10 . . 6 . . 20 . . . . . 252 . . . . . . . . Treads 4034 | . . . 1458 477 . . . . . 16 . 20 746 404 . . 50 . . 863 Legs 8945 | 39 77 . 115 276 483 1025 4205 1119 282 258 221 19 . 452 176 198 . . . . Wheels . | . . . . . . . . . . . . . . . . . . . . . Hover 160 | . . . . . . . . . . 64 96 . . . . . . . . . Flight 10213 | . 600 1698 336 . . . . 16 . . 427 97 1082 216 . 1056 1900 1432 701 652 Fastest Speed 27 | 50 32 32 27 120 120 84 64 90 145 145 53 50 72 64 64 43 34 34 34 28 Average Speed 82 | 105 42 32 130 140 120 114 76 164 155 221 115 91 93 89 64 46 38 34 34 57 Slowest Speed 350 | 120 120 112 300 260 120 350 180 288 220 327 266 271 208 115 64 64 115 34 34 177 Overloaded Moves . | . . . . . . . . . . . . . . . . . . . . . Propulsion Burnouts . | . . . . . . . . . . . . . . . . . . . . . Robots Hopped 26 | . 3 1 2 . . . . . . . 10 . . . . . . 6 3 1 Potential Cave-ins 35 | . . 1 . . . . . . . . 5 . . . . . 2 27 . . Cave-ins Triggered 1 | . . . . . . . . . . . . . . . . . . 1 . . Teleports 5 | . . . . . . . . . . . . . . . . . . 5 . . Exploration Rate (%) 70 | 4 81 91 96 24 73 99 85 97 86 98 75 14 99 97 62 98 45 93 14 49 Regions Visited 20 Branch Regions 12 Pre-discovered Areas 18 | . . . 3 . . 4 4 1 . . 1 . . 1 3 . . 1 . . Known Exits Taken 20 | 1 1 1 1 1 1 1 1 1 1 1 1 1 1 1 1 1 1 1 1 . Unknown Exits Taken . | . . . . . . . . . . . . . . . . . . . . . Scrap Searched 13 | . . 6 . . . . . . . . . . 5 1 . 1 . . . . Spaces Dug 72 | . . . . . . 4 6 . . . 14 . 5 . . 1 6 33 . 3 Terrain Destroyed 734 | . . 217 28 27 2 9 192 10 . 6 65 1 5 2 . 15 19 47 14 75 Melee 3 | . . . . . . . . . . . . . 3 . . . . . . . Projectile 277 | . . . 9 . 2 9 67 10 . 6 65 1 2 2 . 15 19 47 10 13 AOE 454 | . . 217 19 27 . . 125 . . . . . . . . . . . 4 62 Terrain Rammed . | . . . . . . . . . . . . . . . . . . . . . Walls Destroyed . | . . . . . . . . . . . . . . . . . . . . . Machines Disabled . | . . . . . . . . . . . . . . . . . . . . . Actions | -11 -10 -10 -8 -7 -7 -7 -5 -5 -5 -5 -5 -4 -4 -4 -4 -3 -3 -3 -2 -1 --------- Run | Yrd Mat Sub Mat Fac Sto Rec Fac Ext Cet Arc Hub Fac Upp Upp Zhi Pro Res Qua Res Acc Total 32107 | 60 876 1830 2493 951 713 1664 5696 1253 493 1015 961 518 2534 1143 314 1803 2555 2266 1070 1899 Wait 6324 | . 162 40 251 93 86 513 1096 36 138 643 129 112 614 14 130 447 472 742 315 291 Move 23569 | 48 670 1695 1910 752 482 1044 4204 1134 281 337 725 387 1827 1071 175 1253 1949 1419 694 1512 Hop 23 | . 3 1 2 . . . . . . . 8 . . . . . . 5 3 1 Pick Up 81 | 1 7 3 14 1 5 4 17 . 6 3 1 . . . 1 . 6 11 . 1 Fast Attach 241 | 7 3 . 51 12 17 2 26 6 3 3 4 4 13 . 2 4 27 9 16 32 Attach 50 | . 2 3 . . 3 1 7 . 2 . 6 4 . . . 3 6 9 1 3 Detach 53 | . 2 1 4 . 5 3 5 . . 1 4 5 . . 1 2 11 2 3 4 Swap 74 | . 6 7 13 5 15 2 2 1 1 2 1 . 1 1 . 3 4 7 1 2 Drop 255 | . 8 3 42 9 26 25 32 7 7 2 4 3 9 . . 6 30 13 12 17 Fire 1200 | 4 13 46 162 69 71 27 294 52 55 24 79 2 28 36 . 83 50 48 25 32 Melee 152 | . . 31 44 10 . . . . . . . . 39 21 5 2 . . . . Ram . | . . . . . . . . . . . . . . . . . . . . . Kick 15 | . . . . . . . 13 1 . . . 1 . . . . . . . . Crush 4 | . . . . . . . . . . . . . . . . . . . . 4 Escape Stasis 16 | . . . . . . . . 15 . . . . . . . . . 1 . . Rewire 50 | . . . . . 3 43 . 1 . . . . 3 . . . . . . . Trap . | . . . . . . . . . . . . . . . . . . . . . Miscellaneous . | . . . . . . . . . . . . . . . . . . . . . Route ------- -11/Scrapyard -10/Materials (discovered 4 exits: *Mat x3 / *Sub) -10/Subcaves (discovered 2 exits: *Mat / *Rec) -8/Materials (discovered 3 exits: *Fac x3) -7/Factory (discovered 5 exits: *Fac x2 / *Sto x2 / Low) -7/Storage -7/Recycling -5/Factory (discovered 8 exits: *Fac x3 / *Upp x2 / *Ext x2 / Gar) -5/Extension (discovered 3 exits: *Fac x2 / *Cet) -5/Cetus (discovered 2 exits: *Fac / *Arc) -5/Archives (discovered 3 exits: *Fac / *Hub x2) -5/Hub_04(d) (discovered 4 exits: *Fac x4) -4/Factory -4/Upper Caves -4/Upper Caves (discovered 2 exits: *Res / *Zhi) -4/Zhirov -3/Proximity Caves -3/Research (discovered 3 exits: Arm / *Qua x2) -3/Quarantine -2/Research -1/Access (discovered 2 exits: *Sur / *Com) To Fleet Rendezvous History --------- Turn | Location | Event 10 | -11/Scrapyard | Identified exit to Materials 10 | -11/Scrapyard | Discovered exit to Materials (range 15) 74 | -11/Scrapyard | Entered Materials 74 | -10/Materials | Evolved 1 slot: Utility x1 210 | -10/Materials | Identified exit to Materials 210 | -10/Materials | Discovered exit to Materials (range 16) 438 | -10/Materials | Discovered exit to Materials (range 15) 548 | -10/Materials | Discovered exit to Materials (range 6) 553 | -10/Materials | Build established: Hacker-Sprinter 577 | -10/Materials | Identified exit to Subcaves 577 | -10/Materials | Discovered exit to Subcaves (range 7) 579 | -10/Materials | Entered Subcaves 580 | -10/Subcaves | Approached by a straggling Scientist 616 | -10/Subcaves | A swath of the cavern ceiling suddenly collapsed 708 | -10/Subcaves | Learned Materials stockpile data 717 | -10/Subcaves | Ambushed by Subdweller buried in earth 873 | -10/Subcaves | A swath of the cavern ceiling suddenly collapsed 918 | -10/Subcaves | Shifting Twisted Machinery released Sub. Shrapnel Launcher 919 | -10/Subcaves | Shifting Twisted Machinery released Ripper 1075 | -10/Subcaves | Identified exit to Materials 1075 | -10/Subcaves | Discovered exit to Materials (range 6) 1079 | -10/Subcaves | Visited Clippyterm 1079 | -10/Subcaves | Learned 40 Factory zone layouts 1101 | -10/Subcaves | Identified exit to Recycling 1101 | -10/Subcaves | Discovered exit to Recycling (range 14) 1343 | -10/Subcaves | Visited 4L-MR0's lab 1352 | -10/Subcaves | Found Arachnoskeleton 1375 | -10/Subcaves | Entered Materials 1375 | -8/Materials | Evolved 4 slots: Propulsion x2, Utility x2 1614 | -8/Materials | Garrison activated, responded to threat 1819 | -8/Materials | Lost 3 parts (1n2u) 2191 | -8/Materials | Identified exit to Factory 2191 | -8/Materials | Discovered exit to Factory (range 13) 2244 | -8/Materials | Build established: Hacker-Mutant 2543 | -8/Materials | Garrison activated, responded to threat 2778 | -8/Materials | Garrison activated, responded to threat 3471 | -8/Materials | Learned location of Zion (-7) 3518 | -8/Materials | Learned location of 1 exit from Extension 3585 | -8/Materials | Learned Factory scanalyzer intel 3613 | -8/Materials | Learned 4 Factory zone layouts 3644 | -8/Materials | Learned Storage stockpile data 3645 | -8/Materials | Repaired Nuclear Core 3675 | -8/Materials | Learned 2 Storage zone layouts 4228 | -8/Materials | Repaired Med. Treads 4738 | -8/Materials | Entered Factory 4738 | -7/Factory | Evolved 2 slots: Power x1, Utility x1 4739 | -7/Factory | Identified exit to Factory 4739 | -7/Factory | Identified exit to Lower Caves 4739 | -7/Factory | Identified exit to Storage 4740 | -7/Factory | Loaded intel: 4 scanalyzer locations 5157 | -7/Factory | Repaired Med. Treads 5463 | -7/Factory | Garrison activated, responded to threat 5585 | -7/Factory | Repaired Med. Armor Plating 6096 | -7/Factory | Entered Storage 6488 | -7/Storage | Assisted by bots powering up and referring to "LRC-V3" 6635 | -7/Storage | Lost 4 allies 6725 | -7/Storage | Lost 3 allies 6731 | -7/Storage | Repaired Hvy. Deuterium Engine 6967 | -7/Storage | Used back door to open Recycling access 6967 | -7/Storage | Discovered exit to Recycling (range 5) 6991 | -7/Storage | Entered Recycling 6991 | -7/Recycling | Accompanied by 1 ally 7644 | -7/Recycling | Identified exit to Factory 7644 | -7/Recycling | Discovered exit to Factory (range 16) 7677 | -7/Recycling | Build established: Commander-Mutant 7945 | -7/Recycling | Entered Scraplab 7992 | -7/Recycling | Found Prototype Device 7992 | -7/Recycling | Identified Scrap Engine 8034 | -7/Recycling | Attached Arachnoskeleton, gained temporary slots: Propulsion x3 8743 | -7/Recycling | Build established: Commander-Construct 8841 | -7/Recycling | Entered Factory 8841 | -5/Factory | Accompanied by 11 allies 8841 | -5/Factory | Evolved 4 slots: Utility x3, Weapon x1 9152 | -5/Factory | Build established: Commander-Mutant 9714 | -5/Factory | Lost 4 allies 9970 | -5/Factory | Build established: Hacker-Mutant 10084 | -5/Factory | Identified exit to Factory 10084 | -5/Factory | Discovered exit to Factory (range 3) 10084 | -5/Factory | Discovered exit to Factory (range 14) 10361 | -5/Factory | Repaired Imp. Medium Armor Plating? 10487 | -5/Factory | Identified exit to Upper Caves 10487 | -5/Factory | Identified exit to Extension 11522 | -5/Factory | Garrison activated, responded to threat 12092 | -5/Factory | Discovered exit to Factory (range 10) 12101 | -5/Factory | Destroyed 8 combat bots 12211 | -5/Factory | Identified exit to Garrison 12339 | -5/Factory | Learned location of 1 exit from Quarantine 12388 | -5/Factory | Learned Research stockpile data 12433 | -5/Factory | Repaired Lyr. Heavy Armor Plating 12453 | -5/Factory | Learned Factory security intel 12466 | -5/Factory | Garrison activated, responded to threat 12473 | -5/Factory | Learned Extension terminal intel 12493 | -5/Factory | Build established: Hacker-Skirmisher 12504 | -5/Factory | Learned location of Hub_04(d) (-5) 12667 | -5/Factory | Learned 4 Research zone layouts 12852 | -5/Factory | Spotted B-75 Beast 12889 | -5/Factory | Destroyed B-75 Beast 13307 | -5/Factory | Fabricated Exp. Heat Sink (x1) 13435 | -5/Factory | Fabricated Biometal Leg (x2) 13566 | -5/Factory | Fabricated Q-thruster (x2) 13698 | -5/Factory | Fabricated Q-thruster (x2) 13833 | -5/Factory | Fabricated Biometal Leg (x2) 14007 | -5/Factory | Entered Extension 14008 | -5/Extension | Identified exit to Cetus 14009 | -5/Extension | Loaded intel: 18 terminal locations 14502 | -5/Extension | Spotted B-75 Beast 14606 | -5/Extension | Rescued a captive Derelict 14619 | -5/Extension | Rescued a captive Derelict 14696 | -5/Extension | Rescued a captive Derelict 14697 | -5/Extension | Rescued a captive Derelict 14713 | -5/Extension | Rescued a captive Derelict 14740 | -5/Extension | Rescued A7 14786 | -5/Extension | Rescued a captive Derelict 14822 | -5/Extension | Build established: Hacker-Construct 14880 | -5/Extension | Disrupted transfer network 15096 | -5/Extension | Spotted B-75 Beast 15105 | -5/Extension | Allies destroyed B-75 Beast 15118 | -5/Extension | Destroyed B-75 Beast 15137 | -5/Extension | Lost 4 allies 15214 | -5/Extension | Discovered exit to Factory (range 3) 15278 | -5/Extension | Rescued a captive Derelict 15377 | -5/Extension | Rescued a captive Derelict 15617 | -5/Extension | Learned Testing non-interactive machine intel 15740 | -5/Extension | Learned Factory emergency access door positions 15757 | -5/Extension | Discovered exit to Factory (range 10) 15784 | -5/Extension | Learned 4 Proximity Caves zone layouts 15816 | -5/Extension | Learned location of 1 exit from Upper Caves 15837 | -5/Extension | Learned 8 Research zone layouts 15850 | -5/Extension | Learned Armory fabricator intel 15874 | -5/Extension | Learned location of Testing (-2) 15908 | -5/Extension | Learned Quarantine emergency access door positions 15954 | -5/Extension | Learned Factory emergency access door positions 16115 | -5/Extension | Entered Cetus 16115 | -5/Cetus | Accompanied by 2 allies (A7) 16120 | -5/Cetus | Acquired a Cetus Manufacturing Module code from A7 16134 | -5/Cetus | Spotted Cetus Guard 16134 | -5/Cetus | Spotted Cetus Guard 16137 | -5/Cetus | Spotted Cetus Guard 16141 | -5/Cetus | Destroyed Cetus Guard 16142 | -5/Cetus | Spotted Cetus Guard 16153 | -5/Cetus | Allies destroyed Cetus Guard 16154 | -5/Cetus | Destroyed Cetus Guard 16163 | -5/Cetus | Allies destroyed Cetus Guard 16304 | -5/Cetus | Started Cetus Manufacturing Module 16329 | -5/Cetus | Manufactured an Enhanced Grunt 16354 | -5/Cetus | Manufactured an Enhanced Grunt 16379 | -5/Cetus | Manufactured an Enhanced Grunt 16404 | -5/Cetus | Manufactured an Enhanced Grunt 16429 | -5/Cetus | Manufactured an Enhanced Grunt 16555 | -5/Cetus | Identified exit to Archives 16555 | -5/Cetus | Discovered exit to Archives (range 16) 16585 | -5/Cetus | Spotted Cetus Guard 16585 | -5/Cetus | Spotted Cetus Guard 16588 | -5/Cetus | Spotted Cetus Guard 16589 | -5/Cetus | Destroyed Cetus Guard 16599 | -5/Cetus | Extracted ID and sensor layout for unrecognized location from A7's data core 16601 | -5/Cetus | Spotted Cetus Guard 16602 | -5/Cetus | Allies destroyed Cetus Guard 16607 | -5/Cetus | Found Corrupted Prototype Protection 16609 | -5/Cetus | Allies destroyed Cetus Guard 16625 | -5/Cetus | Discovered exit to Factory (range 16) 16631 | -5/Cetus | Identified Med. Regenerative Plating 16635 | -5/Cetus | Met Revision 17 16851 | -5/Cetus | Entered Archives 16851 | -5/Archives | Accompanied by 5 allies 17046 | -5/Archives | Discovered exit to Factory (range 15) 17114 | -5/Archives | Identified exit to Hub_04(d) 17114 | -5/Archives | Discovered exit to Hub_04(d) (range 16) 17191 | -5/Archives | Discovered exit to Hub_04(d) (range 13) 17390 | -5/Archives | Unable to access archive contents 18331 | -5/Archives | Entered Hub_04(d) 18331 | -5/Hub_04(d) | Accompanied by 5 allies 18713 | -5/Hub_04(d) | Network Hub disabled 18737 | -5/Hub_04(d) | Spotted Lightning 18744 | -5/Hub_04(d) | Spotted Lightning 18749 | -5/Hub_04(d) | Spotted Lightning 18756 | -5/Hub_04(d) | Destroyed Lightning 18775 | -5/Hub_04(d) | Garrison activated, responded to threat 18776 | -5/Hub_04(d) | Core integrity fell below 50% 18783 | -5/Hub_04(d) | Lost 5 allies 18789 | -5/Hub_04(d) | Destroyed Lightning 18820 | -5/Hub_04(d) | Destroyed Lightning 18875 | -5/Hub_04(d) | Found Prototype Processor 18875 | -5/Hub_04(d) | Identified Exp. Targeting Computer 19012 | -5/Hub_04(d) | Lost 3 parts (2u1w) 19192 | -5/Hub_04(d) | Garrison activated, responded to threat 19290 | -5/Hub_04(d) | Discovered exit to Factory (range 10) 19334 | -5/Hub_04(d) | Spotted Lightning 19334 | -5/Hub_04(d) | Spotted Lightning 19337 | -5/Hub_04(d) | Spotted Lightning 19367 | -5/Hub_04(d) | Disrupted transfer network 19396 | -5/Hub_04(d) | Network Hub disabled 19470 | -5/Hub_04(d) | Network Hub disabled 19492 | -5/Hub_04(d) | Discovered exit to Factory (range 14) 19501 | -5/Hub_04(d) | Spotted Lightning 19502 | -5/Hub_04(d) | Spotted Lightning 19506 | -5/Hub_04(d) | Network Hub disabled 19513 | -5/Hub_04(d) | Learned Extension non-interactive machine intel 19513 | -5/Hub_04(d) | Lost 3 parts (1n1u1w) 19518 | -5/Hub_04(d) | Spotted Lightning 19524 | -5/Hub_04(d) | Spotted B-75 Beast 19533 | -5/Hub_04(d) | Discovered exit to Factory (range 3) 19562 | -5/Hub_04(d) | Discovered exit to Factory (range 15) 19590 | -5/Hub_04(d) | Learned location of Cetus (-5) 19591 | -5/Hub_04(d) | Entered Factory 19591 | -4/Factory | Evolved 2 slots: Propulsion x1, Utility x1 19859 | -4/Factory | Build established: Hacker-Mutant 19876 | -4/Factory | Spotted B-86 Titan 19916 | -4/Factory | Lost 4 parts (1p1n1u1w) 19955 | -4/Factory | Fabricated Hds. Centrium Heavy Treads? 20065 | -4/Factory | Identified exit to Upper Caves 20065 | -4/Factory | Discovered exit to Upper Caves (range 11) 20078 | -4/Factory | Entered Upper Caves 20079 | -4/Upper Caves | Identified exit to Upper Caves 20293 | -4/Upper Caves | Entered a destroyed Warlord outpost 20747 | -4/Upper Caves | Learned 4 Research zone layouts 21194 | -4/Upper Caves | Encountered a Warlord checkpoint 22302 | -4/Upper Caves | Murdered 4 allies 22588 | -4/Upper Caves | Entered another Upper Caves area 22707 | -4/Upper Caves | Identified exit to Research 22707 | -4/Upper Caves | Discovered exit to Research (range 9) 23280 | -4/Upper Caves | Attracted the attention of an 0b10 base 23356 | -4/Upper Caves | Learned location of 1 exit from Proximity Caves 23356 | -4/Upper Caves | Learned Armory emergency access door positions 23356 | -4/Upper Caves | Learned Research garrison access intel 23399 | -4/Upper Caves | Identified exit to Zhirov 23399 | -4/Upper Caves | Discovered exit to Zhirov (range 9) 23685 | -4/Upper Caves | Entered Zhirov 23685 | -4/Zhirov | Identified exit to Proximity Caves 23685 | -4/Zhirov | Discovered exit to Proximity Caves (range 3) 23697 | -4/Zhirov | Met Zhirov 23708 | -4/Zhirov | Zhirov requested help retrieving the SGEMP Prototype 23711 | -4/Zhirov | Learned location of Command (-1) 23738 | -4/Zhirov | Found Alien Artifact 23738 | -4/Zhirov | Identified Integrated Dissipator 23738 | -4/Zhirov | Installed Integrated Dissipator, increased core heat dissipation (+20) 23748 | -4/Zhirov | Found Alien Artifact 23945 | -4/Zhirov | Entered Proximity Caves 24103 | -3/Proximity Caves | Spotter reported a threat 24178 | -3/Proximity Caves | Spotter reported a threat 24216 | -3/Proximity Caves | Attracted the attention of an 0b10 outpost 24243 | -3/Proximity Caves | Spotter reported a threat 24286 | -3/Proximity Caves | Spotted B-86 Titan 24359 | -3/Proximity Caves | Spotter reported a threat 24481 | -3/Proximity Caves | Spotter reported a threat 24531 | -3/Proximity Caves | Destroyed B-86 Titan 25196 | -3/Proximity Caves | Entered Research 25196 | -3/Research | Evolved 2 slots: Power x1, Weapon x1 25197 | -3/Research | Identified exit to Armory 25198 | -3/Research | Identified exit to Quarantine 25200 | -3/Research | Loaded intel: 3 garrison access locations 25396 | -3/Research | Revision forces began assault on 0b10 25476 | -3/Research | Met up with Revision 17++ 25512 | -3/Research | Spotted B-86 Titan 25667 | -3/Research | Spotted B-86 Titan 25896 | -3/Research | Research terminal network offline 25996 | -3/Research | Found Prototype Device 25996 | -3/Research | Identified Exp. Shield Generator 26021 | -3/Research | Discovered exit to Quarantine (range 5) 26076 | -3/Research | Build established: Hacker-Construct 26257 | -3/Research | Found Prototype Device 26257 | -3/Research | Identified Adv. Kinecellerator 26388 | -3/Research | Spotted Striker 26391 | -3/Research | Spotted Executioner 26403 | -3/Research | Destroyed Striker 26415 | -3/Research | Destroyed Executioner 26521 | -3/Research | Spotted Executioner 26528 | -3/Research | Spotted Striker 26535 | -3/Research | Repaired Centrium Medium Armor Plating? 26647 | -3/Research | Entered Quarantine 26648 | -3/Quarantine | Identified exit to Research 26683 | -3/Quarantine | Found Alien Artifact 26885 | -3/Quarantine | Found Alien Artifact 27379 | -3/Quarantine | Found Prototype Device 27379 | -3/Quarantine | Identified Exp. Focal Shield 27419 | -3/Quarantine | Found Alien Artifact 27420 | -3/Quarantine | Identified Hpw. Transdimensional Reconstructor 27420 | -3/Quarantine | Warped through subspace 27455 | -3/Quarantine | Loaded intel: 3 scanalyzer locations 27526 | -3/Quarantine | Identified Phase Redirector 27527 | -3/Quarantine | Identified Transdimensional Reconstructor 27527 | -3/Quarantine | Warped through subspace 27537 | -3/Quarantine | Learned 4 Access zone layouts 27541 | -3/Quarantine | Learned Section 7 trap positions 27542 | -3/Quarantine | Learned Testing emergency access door positions 27545 | -3/Quarantine | Learned Testing trap positions 27585 | -3/Quarantine | Learned 4 Research zone layouts 27620 | -3/Quarantine | Learned Section 7 emergency access door positions 27823 | -3/Quarantine | Found Hpw. Transdimensional Reconstructor 27824 | -3/Quarantine | Found Transdimensional Reconstructor 27825 | -3/Quarantine | Warped through subspace 27835 | -3/Quarantine | Found Transdimensional Reconstructor 27865 | -3/Quarantine | System corruption reached 10% 27869 | -3/Quarantine | Found Alien Artifact 27869 | -3/Quarantine | Identified Core Reset Matrix 27869 | -3/Quarantine | Identified Subatomic Replicator 27869 | -3/Quarantine | Used Core Reset Matrix 27873 | -3/Quarantine | Detected hypermatrix surge 27873 | -3/Quarantine | Sensed 8 artifacts in vicinity 27884 | -3/Quarantine | Discovered exit to Research (range 8) 27892 | -3/Quarantine | Warped through subspace 27909 | -3/Quarantine | Cryocooling Duct disabled 27919 | -3/Quarantine | Warped through subspace 27924 | -3/Quarantine | Ambient heat levels rising (+20) 27924 | -3/Quarantine | Non-combat units ordered to evacuate 27962 | -3/Quarantine | Crushed by falling debris 27967 | -3/Quarantine | Found Dimensional Node Initializer 27970 | -3/Quarantine | Found Dimensional Node Initializer 28012 | -3/Quarantine | Found Sigix Corpse 28085 | -3/Quarantine | Entered Research 28085 | -2/Research | Evolved 2 slots: Utility x2 28527 | -2/Research | Identified exit to Access 28527 | -2/Research | Discovered exit to Access (range 8) 28753 | -2/Research | Entered Access 28753 | -1/Access | Evolved 2 slots: Propulsion x2 29421 | -1/Access | Identified exit to Command 29421 | -1/Access | Discovered exit to Command (range 7) 29586 | -1/Access | Lost 4 parts (1p2u1w) 29765 | -1/Access | Spotted B-99 Colossus 30090 | -1/Access | Identified exit to Surface 30090 | -1/Access | Discovered exit to Surface (range 5) 30092 | *** | Heading to fleet! Last Messages --------------- 30063_ Unknown Power Core tumbles out of repair station. 30063_ Adv. Force Field tumbles out of repair station. 30065_ Unknown Hover Unit tumbles out of repair station. 30069_ W-44 Eye distress signal jammed. 30069_ Acquired Adv. Force Field. 30070_ W-44 Eye distress signal jammed. 30072_ P-80 Master resets P-80 Master, system corruption cleaned. 30072_ W-44 Eye distress signal jammed. 30073_ System corrupted: Component data lost. 30074_ W-44 Eye distress signal jammed. 30088_ Connecting with Terminal... >>Open(Door) Sealed Barrier opened. 30090_ The Access Shell folds into the floor. 30090_ EXIT=FOUND: SURFACE [Achievement: 30k Club] [Achievement: 40k Club] [Achievement: Just Browsing] [Achievement: Home At Last?] [Achievement: Achiever] Map ----- +----------------------------------------------------+ | ??????????????????????# ###"###### | | ??????????????????????# # ## | | ??????????????????????# # ## | | ??????????????????????# # ## | | ????????????????????? / # ## | | ???????????????????? # # ## # | | ??????????????????? # # + # | | ?????????????????? ?# ###########+####### ### | | ????????????????? ??# #????# | | ?????????????????###??# ?????# | | ?????????????????????? ?????# | | ??????????????????????? ?????# = | | ????????????????????????????????# | | ????????????????????????????????# | | ?????????????????????BB????BB???# | | ?????????????????????BB????BB???# | | ????????????????????????????????################## | | ?????????????????????????????????????????????????? | | ?????????????????????????????????????????????????? | | ?????????????????????????????????????????????????? | | ???????????????????#""""""""""#??????????????????? | | ???????????????????# #??????????????????? | | ???????????????????# #??????????????????? | | ???????????????????# #??????????????????? | | ???????????????????# "" #??????????????????? | | ???????????????????# "@ #??????????????????? | | ???????????????????# #??????????????????? | | ???????????????????# #??????????????????? | | ???????????#######?# #??????????????????? | | ???????#???? ?## ##?????????????????? | | ???????# ?? ?# #?????????????????? | | ???????# ?" ?##"" ##?????????????????? | | ???????# """ ??#"" #??????????????????? | | ???????# """ ???#"" #??????????????????? | | ????????? " ???#T #??????????????????? | | ?????????? ???#"" #??????????????????? | | #??????????? ???#"" #??????????????????? | | ##########/#####"" #??????????????????? | | " ???????????? | | ???????????? | | ?????###### ########################????????????? | | ??????????# #???????????????????????????????????? | | ??????????# #???????????????????????????????????? | | ??????????# #???########????????????????????????? | | ??????????# #?? ????????????????????????? | | ??????????# #?? ?????????????????????????? | | ??????????# #? ??????????????????????????? | | ??????????# #? ?????????????????????????? | | ??????????# # " ? ?????????????????????????? | | ??????????# # """ ????????????????????????? | +----------------------------------------------------+ Best States ------------- Heat Dissipation 120 Coolant Potential 120 Energy Generation 86 Energy Capacity 1373 Matter Stores 300 Matter Capacity 300 Sight Range 22 Robot Scan Range 18 Terrain Scan Range 20 Terrain Scan Density 210 ECM Strength 2 Jamming Range 16 Power Amplification 20 Additional Mass Support 6 EM Shielding 4 Corruption Block 15 Armor Coverage 600 Resistance: KI 35 Resistance: TH 35 Resistance: EX 35 Resistance: EM 35 Resistance: I 35 Resistance: S 35 Resistance: P 35 Power Shielding 66 Utility Shielding 66 Weapon Shielding 66 Point Defense Rating 160 Weapon Cycling 25 Evasion (%) 76 Targeting Accuracy 20 Target Analysis 8 Recoil Reduction 6 Particle Charging 30 Kinecelleration 40 Offensive Hacking 48 Defensive Hacking 14 Item Schematics ----------------- None Robot Schematics ------------------ None Fabricated ------------ Exp. Heat Sink | x1 | -5/Factory Biometal Leg | x2 | -5/Factory Q-thruster | x2 | -5/Factory Q-thruster | x2 | -5/Factory Biometal Leg | x2 | -5/Factory Hds. Centrium Heavy Treads | x1 | -4/Factory | Preloaded Repaired ---------- Nuclear Core | 58% | -8/Materials Med. Treads | 3% | -8/Materials Med. Treads | 24% | -7/Factory Med. Armor Plating | 11% | -7/Factory Hvy. Deuterium Engine | 70% | -7/Storage Imp. Medium Armor Plating | 20% | -5/Factory Lyr. Heavy Armor Plating | 15% | -5/Factory Centrium Medium Armor Plating | 83% | -3/Research Alien Tech Used ----------------- Integrated Dissipator High-powered Transdimensional Reconstructor Phase Redirector Transdimensional Reconstructor Core Reset Matrix Achievements -------------- 30k Club 404 40k Club Achiever Alien Roots Alien Tech Collateral Damage Denied? Dodgeball, But With Guns Explorer Fist Fight Home At Last? I'm Back, Baby! It Was An Accident, I Swear Just Browsing Knowing Is Half The Battle More Power To You Ooh, Shiny! Prison Break Production Line Project G-00 Revising The Future Revolutionary Research Rockin' Loadout Subspace Traveler The Science Guy Challenges ------------ None Game ------ Seed CompanionTimingCompactor Manual? 0 Play Time 13:25:25 Cumulative 55.1 hours Start 2025.08.20 @ 23:14:08 End 2025.08.24 @ 00:32:55 Sessions 1 Manual Loads 0 Difficulty Explorer Special Mode None Game No. 10 Rogue 0 Adventurer 0 Explorer 10 Win Type 2 Total 1 Types 0/0/1/0/0/0/0/0/0/0 Lore% 22 Gallery% 28 Achievement% 34 Wizard Run 0 Options --------- Layout 0 ASCII 0 Keyboard 0 Movement Mouse Keybinds 0 Fullscreen 2 Font 24/Terminus Map View 76x50 Zoom Use 0% Tactical HUD 1 Map Filters NONE Filters NONE Steam 1 RUN: dd04f8ac-a9e6-488b-9b3a-8da44301099c